bitfinex/quotes_BTCUSD_20240701
["timestamp","ask_amount","ask_price","bid_price","bid_amount"]
[1719800719689,0.023,63622.0,63619.0,0.157183]
[1719800720015,0.023,63622.0,63620.0,0.157183]
[1719800720211,0.0304834,63625.0,63620.0,0.157183]
[1719800720955,0.0074834,63624.0,63620.0,0.157183]
[1719800721194,0.005,63622.0,63620.0,0.157183]
[1719800721395,0.023,63623.0,63620.0,0.157183]
[1719800721396,0.023,63621.0,63620.0,0.157183]
[1719800721605,0.0074834,63621.0,63620.0,0.157183]
[1719800721810,0.0304834,63621.0,63620.0,0.157183]
[1719800723013,0.0304834,63621.0,63620.0,0.158183]
[1719800723417,0.0304834,63621.0,63620.0,0.001]
[1719800723966,0.023,63621.0,63620.0,0.001]
[1719800724292,0.023,63624.0,63620.0,0.001]
[1719800724480,0.023,63624.0,63618.0,0.157186]
[1719800724685,0.0074834,63623.0,63620.0,0.001]
[1719800724885,0.023,63622.0,63620.0,0.002]
[1719800725370,0.023,63622.0,63620.0,0.001]
[1719800725566,0.0074834,63621.0,63614.0,0.157196]
[1719800725765,0.0074834,63616.0,63615.0,0.157194]
[1719800725966,0.0074834,63616.0,63613.0,0.157199]
[1719800726171,0.0074834,63616.0,63614.0,0.157198]
[1719800726172,0.023,63615.0,63614.0,0.157198]
[1719800726517,0.023,63616.0,63614.0,0.157198]
[1719800727656,0.0074834,63613.0,63612.0,0.1572]
[1719800727869,0.0304834,63613.0,63612.0,0.1572]
[1719800728692,0.0304834,63613.0,63612.0,0.158124]
[1719800728855,0.0314834,63613.0,63612.0,0.170124]
[1719800729065,0.0324834,63613.0,63612.0,0.177124]
[1719800729266,0.0324834,63613.0,63612.0,0.019924]
[1719800729508,0.025,63613.0,63612.0,0.177127]
[1719800729711,0.002,63613.0,63612.0,0.177127]
[1719800729914,0.002,63613.0,63612.0,0.805939]
[1719800730115,0.002,63613.0,63612.0,1.55927798]
[1719800730472,0.001,63613.0,63612.0,1.87920058]
[1719800730673,0.002,63613.0,63612.0,1.89120058]
[1719800731174,0.001,63613.0,63612.0,1.86720058]
[1719800731380,0.023,63618.0,63617.0,0.471571]
[1719800731583,0.023,63623.0,63619.0,0.157185]
[1719800731786,0.0304834,63626.0,63619.0,0.157185]
[1719800732005,0.0074834,63622.0,63619.0,0.157185]
[1719800732145,0.023,63621.0,63619.0,0.157185]
[1719800734381,0.023,63621.0,63619.0,0.163185]
[1719800734585,0.023,63621.0,63619.0,0.161185]
[1719800734805,0.0304834,63621.0,63619.0,0.008]
[1719800735145,0.0074834,63620.0,63619.0,0.008]
[1719800735295,0.0304834,63620.0,63619.0,0.008]
[1719800735740,0.0304834,63620.0,63619.0,0.004]
[1719800736360,0.0074834,63619.0,63616.0,0.357191]
[1719800736501,0.023,63620.0,63617.0,0.15719]
[1719800736502,0.0304834,63618.0,63617.0,0.15719]
[1719800736918,0.023,63618.0,63617.0,0.15719]
[1719800737122,0.0304834,63618.0,63617.0,0.15719]
[1719800737525,0.0074834,63617.0,63616.0,0.203]
[1719800737731,0.0304834,63617.0,63616.0,0.203]
[1719800737931,0.023,63617.0,63616.0,0.2]
[1719800738257,0.023,63618.0,63617.0,0.004]
[1719800739261,0.023,63618.0,63617.0,0.16119]
[1719800739468,0.023,63619.0,63617.0,0.15719]
[1719800739858,0.0304834,63619.0,63617.0,0.15719]
[1719800740906,0.024,63619.0,63617.0,0.15719]
[1719800741013,0.0074834,63617.0,63616.0,0.2]
[1719800741212,0.023,63617.0,63616.0,0.2]
[1719800741675,0.023,63618.0,63616.0,0.2]
[1719800741875,0.0074834,63617.0,63616.0,0.2]
[1719800742032,0.0304834,63617.0,63616.0,0.2]
[1719800742231,0.0074834,63615.0,63613.0,0.157199]
[1719800742439,0.023,63617.0,63612.0,0.000924]
[1719800742440,0.0074834,63613.0,63612.0,0.000924]
[1719800742644,0.0304834,63613.0,63612.0,0.000924]
[1719800742842,0.4334834,63613.0,63612.0,0.000924]
[1719800743325,0.46829101,63613.0,63612.0,0.000924]
[1719800743490,0.4334834,63613.0,63612.0,0.000924]
[1719800743886,1.55764784,63613.0,63612.0,0.000924]
[1719800744235,1.1522124,63612.0,63611.0,0.001]
[1719800744390,1.75195738,63612.0,63611.0,0.001]
[1719800744797,1.43755138,63612.0,63611.0,0.001]
[1719800745315,1.52885991,63612.0,63611.0,0.001]
[1719800745576,1.58784109,63612.0,63611.0,0.002]
[1719800745792,1.54085991,63612.0,63611.0,0.002]
[1719800746166,0.79243668,63612.0,63611.0,0.002]
[1719800746499,0.75745701,63612.0,63611.0,0.002]
[1719800746669,0.75745701,63612.0,63611.0,0.003]
[1719800746670,0.76845701,63612.0,63611.0,0.003]
[1719800747522,0.7120834,63612.0,63611.0,0.003]
[1719800752340,0.00643402,63605.0,63601.0,0.14690198]
[1719800752533,0.023,63604.0,63601.0,0.14690198]
[1719800752949,0.02943402,63604.0,63601.0,0.14690198]
[1719800753154,0.023,63604.0,63602.0,0.5498]
[1719800753504,0.01143402,63605.0,63602.0,0.2446]
[1719800753708,0.02943402,63604.0,63602.0,0.2446]
[1719800753911,0.00643402,63603.0,63602.0,0.2446]
[1719800754113,0.02943402,63603.0,63602.0,0.2446]
[1719800755075,0.02943402,63603.0,63600.0,0.09346464]
[1719800755076,0.00643402,63601.0,63600.0,0.09346464]
[1719800755370,0.023,63601.0,63600.0,0.09346464]
[1719800755510,0.02943402,63601.0,63600.0,0.09346464]
[1719800755786,0.023,63601.0,63600.0,0.09346464]
[1719800756901,0.02943402,63601.0,63600.0,0.09346464]
[1719800758441,0.02943402,63601.0,63600.0,0.09546464]
[1719800759277,0.34163402,63601.0,63600.0,0.09646464]
[1719800759492,0.44163402,63601.0,63600.0,0.09646464]
[1719800759699,0.44163402,63601.0,63600.0,0.09446464]
[1719800759897,0.44163402,63601.0,63600.0,0.09346464]
[1719800760071,0.44163402,63601.0,63600.0,0.09646464]
[1719800760536,0.44163402,63601.0,63600.0,0.09446464]
[1719800760537,0.123,63601.0,63600.0,0.09446464]
[1719800760751,0.023,63601.0,63600.0,0.09646464]
[1719800760954,0.12943402,63601.0,63600.0,0.09646464]
[1719800761165,0.123,63601.0,63600.0,0.09646464]
[1719800761373,0.12943402,63601.0,63600.0,0.09646464]
[1719800762370,0.14677848,63601.0,63600.0,0.09646464]
[1719800762568,0.14677848,63601.0,63600.0,0.09746464]
[1719800764158,0.14034446,63601.0,63600.0,0.09746464]
[1719800764799,0.04034446,63601.0,63600.0,0.25469664]
[1719800764971,0.023,63601.0,63600.0,0.25469664]
[1719800765171,0.023,63602.0,63601.0,0.15723]
[1719800765411,0.1,63609.0,63602.0,0.157225]
[1719800765412,0.023,63604.0,63602.0,0.157225]
[1719800765645,0.023,63604.0,63600.0,0.41192964]
[1719800765646,0.00084,63612.0,63611.0,0.157205]
[1719800765846,0.01818117,63612.0,63611.0,1.047327]
[1719800766055,0.00084,63612.0,63611.0,1.360327]
[1719800767342,0.00384,63612.0,63611.0,1.360327]
[1719800767538,0.00084,63612.0,63611.0,1.360327]
[1719800767736,0.02384,63612.0,63611.0,1.360327]
[1719800769065,0.00384,63612.0,63611.0,1.880738]
[1719800769269,0.02584,63612.0,63611.0,1.88830398]
[1719800769425,0.02384,63612.0,63611.0,1.874738]
[1719800769627,0.02384,63612.0,63611.0,1.88830398]
[1719800769808,0.02484,63612.0,63611.0,1.89430398]
[1719800770013,0.02584,63612.0,63611.0,1.90030398]
[1719800770219,0.02484,63612.0,63611.0,1.880738]
[1719800770420,0.00184,63612.0,63611.0,1.880738]
[1719800770844,0.00284,63612.0,63611.0,1.886738]
[1719800771924,0.00284,63612.0,63611.0,1.90030398]
[1719800772146,0.00184,63612.0,63611.0,1.880738]
[1719800772499,0.00284,63612.0,63611.0,1.886738]
[1719800772717,0.00184,63612.0,63611.0,1.874738]
[1719800773102,0.00284,63612.0,63611.0,1.880738]
[1719800773307,0.00184,63612.0,63611.0,1.566327]
[1719800774178,0.00284,63612.0,63611.0,1.572327]
[1719800775726,0.00284,63612.0,63611.0,1.90030398]
[1719800777727,0.00284,63612.0,63611.0,1.886738]
[1719800778907,0.00184,63612.0,63611.0,1.880738]
[1719800779268,0.00284,63612.0,63611.0,1.886738]
[1719800779661,0.00084,63612.0,63611.0,1.874738]
[1719800780073,0.00184,63612.0,63611.0,1.880738]
[1719800781360,0.00184,63612.0,63611.0,1.366327]
[1719800781568,0.00184,63612.0,63611.0,0.477616]
[1719800781762,0.02484,63612.0,63611.0,0.477616]
[1719800782312,0.03127402,63612.0,63611.0,0.477616]
[1719800782512,0.02484,63612.0,63611.0,0.477616]
[1719800786687,0.02484,63612.0,63611.0,0.792027]
[1719800787574,0.00184,63612.0,63611.0,0.792027]
[1719800787731,0.02484,63612.0,63611.0,0.792027]
[1719800788143,0.00184,63612.0,63611.0,0.792027]
[1719800789882,0.00184,63612.0,63611.0,0.865027]
[1719800791557,0.00184,63612.0,63611.0,0.707822]
[1719800791847,0.00184,63612.0,63611.0,0.865027]
[1719800793142,0.00184,63612.0,63611.0,0.865951]
[1719800794554,0.00184,63612.0,63611.0,2.13670098]
[1719800794791,0.00184,63612.0,63611.0,2.15026696]
[1719800794937,0.00184,63612.0,63611.0,2.35026696]
[1719800795129,0.00184,63612.0,63611.0,2.48088959]
[1719800795990,0.00184,63612.0,63611.0,2.28088959]
[1719800796146,0.00184,63612.0,63611.0,2.48088959]
[1719800796365,0.00184,63612.0,63611.0,2.28088959]
[1719800797964,0.00184,63612.0,63611.0,2.15026696]
[1719800798171,0.00184,63612.0,63611.0,2.28088642]
[1719800799723,0.00184,63612.0,63611.0,2.48088642]
[1719800800915,0.00184,63612.0,63611.0,2.79529742]
[1719800801112,0.00184,63612.0,63611.0,2.66467796]
[1719800801368,0.00184,63612.0,63611.0,2.79529698]
[1719800801770,0.00084,63612.0,63611.0,2.78929698]
[1719800802225,0.00284,63612.0,63611.0,2.81229698]
[1719800802399,0.00184,63612.0,63611.0,2.80029698]
[1719800802724,0.00084,63612.0,63611.0,2.78929698]
[1719800803037,0.00184,63612.0,63611.0,2.80129698]
[1719800803683,0.00284,63612.0,63611.0,2.81429698]
[1719800804902,0.00284,63612.0,63611.0,2.81429543]
[1719800806376,0.00284,63612.0,63611.0,2.8142948]
[1719800806804,0.00284,63612.0,63611.0,3.3287058]
[1719800807476,0.00284,63612.0,63611.0,3.57577886]
[1719800807664,0.00284,63612.0,63611.0,3.92051842]
[1719800808207,0.00184,63612.0,63611.0,3.90851842]
[1719800808418,0.00184,63612.0,63611.0,3.90951842]
[1719800808864,0.00284,63612.0,63611.0,3.92351842]
[1719800810558,0.00284,63612.0,63611.0,3.92349359]
[1719800812036,0.00084,63627.0,63626.0,1.82807798]
[1719800812253,0.00084,63627.0,63626.0,2.75930917]
[1719800812425,0.00084,63627.0,63626.0,2.95930917]
[1719800812598,0.00084,63627.0,63626.0,2.75930917]
[1719800812802,0.57664,63627.0,63626.0,1.59310719]
[1719800813182,0.57664,63627.0,63626.0,1.53651498]
[1719800814942,0.57664,63627.0,63626.0,1.54151498]
[1719800815140,0.57664,63627.0,63626.0,1.54051498]
[1719800815556,0.57664,63627.0,63626.0,1.54551498]
[1719800815731,0.57664,63627.0,63626.0,1.47251498]
[1719800817798,0.57664,63627.0,63626.0,1.46751498]
[1719800818005,0.57664,63627.0,63626.0,1.46351498]
[1719800818298,0.57664,63627.0,63626.0,1.46251498]
[1719800818700,0.57664,63627.0,63626.0,1.46551498]
[1719800819031,0.57664,63627.0,63626.0,1.46351498]
[1719800819425,0.57664,63627.0,63626.0,1.46551498]
[1719800820464,0.57664,63627.0,63626.0,1.46451498]
[1719800820737,0.57664,63627.0,63626.0,1.46551498]
[1719800821187,0.57664,63627.0,63626.0,1.46251498]
[1719800821351,0.57664,63627.0,63626.0,1.46551498]
[1719800821711,0.57664,63627.0,63626.0,1.46251498]
[1719800822684,0.57664,63627.0,63626.0,1.14817898]
[1719800829290,0.59386779,63627.0,63626.0,1.14817898]
[1719800831259,0.59392216,63627.0,63626.0,1.14817898]
[1719800834564,0.59396324,63627.0,63626.0,1.14817898]
[1719800835854,0.59396324,63627.0,63626.0,1.22117898]
[1719800836761,0.59396324,63627.0,63626.0,0.90684298]
[1719800836968,0.59396324,63627.0,63617.0,0.2]
[1719800836969,0.00643402,63620.0,63617.0,0.2]
[1719800837322,0.57753402,63618.0,63617.0,0.2]
[1719800837454,0.59490221,63618.0,63617.0,0.2]
[1719800837668,0.61146819,63618.0,63617.0,0.2]
[1719800838284,0.61146819,63618.0,63617.0,0.208]
[1719800838796,0.04036819,63618.0,63617.0,0.679571]
[1719800838966,0.04036819,63618.0,63617.0,0.675571]
[1719800840117,0.04036819,63618.0,63617.0,0.679571]
[1719800840328,0.04036819,63618.0,63617.0,0.675571]
[1719800840531,0.0403482,63618.0,63617.0,0.675571]
[1719800840960,0.023,63618.0,63617.0,0.679571]
[1719800841164,0.01734733,63618.0,63617.0,0.679571]
[1719800841365,0.023,63618.0,63617.0,0.679571]
[1719800841586,0.04034733,63618.0,63617.0,0.679571]
[1719800843530,0.04034317,63618.0,63617.0,0.679571]
[1719800843760,0.04034317,63618.0,63617.0,0.675571]
[1719800843761,0.04034378,63618.0,63617.0,0.675571]
[1719800844184,0.04034378,63618.0,63617.0,0.679571]
[1719800845197,0.04034378,63618.0,63617.0,0.675571]
[1719800845410,0.04034378,63618.0,63617.0,0.679571]
[1719800845792,0.58914378,63618.0,63617.0,0.679571]
[1719800845998,0.5955778,63618.0,63617.0,0.675571]
[1719800846222,0.5955778,63618.0,63617.0,0.008]
[1719800846423,0.7155778,63618.0,63617.0,0.008]
[1719800846681,0.7155778,63618.0,63611.0,0.000924]
[1719800846885,0.55403402,63612.0,63611.0,0.000924]
[1719800847218,0.59438233,63612.0,63611.0,0.000924]
[1719800847571,0.58794831,63612.0,63611.0,0.000924]
[1719800848094,0.59438233,63612.0,63611.0,0.000924]
[1719800848250,0.59438233,63612.0,63611.0,0.001924]
[1719800848440,0.58794831,63612.0,63611.0,0.001924]
[1719800848836,0.59438233,63612.0,63611.0,0.001924]
[1719800849439,0.59438233,63612.0,63611.0,0.003924]
[1719800849935,0.59436538,63612.0,63611.0,0.003924]
[1719800851078,0.023,63612.0,63611.0,0.862951]
[1719800851592,0.123,63615.0,63614.0,0.357198]
[1719800851786,0.14036134,63615.0,63614.0,0.357198]
[1719800852387,0.14679536,63615.0,63614.0,0.357198]
[1719800853087,0.14677123,63615.0,63614.0,0.357198]
[1719800853501,0.14678824,63615.0,63614.0,0.357198]
[1719800853955,0.14035422,63615.0,63614.0,0.671594]
[1719800854177,0.123,63615.0,63614.0,0.671594]
[1719800855177,0.146718,63615.0,63614.0,0.671594]
[1719800855391,0.14028398,63615.0,63614.0,0.671594]
[1719800855602,0.146718,63615.0,63614.0,0.671594]
[1719800855808,0.14028398,63615.0,63614.0,0.671594]
[1719800856113,0.123,63615.0,63614.0,0.671594]
[1719800856302,0.14028296,63615.0,63614.0,0.671594]
[1719800859205,0.123,63615.0,63614.0,0.671594]
[1719800859408,0.14028903,63615.0,63614.0,0.671594]
[1719800861527,0.14028903,63615.0,63614.0,0.98599]
[1719800861844,0.00084,63618.0,63614.0,0.98599]
[1719800861845,0.00084,63618.0,63617.0,1.36371798]
[1719800862124,0.00084,63618.0,63617.0,2.02293796]
[1719800863560,0.00084,63618.0,63617.0,2.02393796]
[1719800864742,0.00084,63618.0,63617.0,2.02593796]
[1719800865146,0.00084,63618.0,63617.0,2.22593796]
[1719800865349,0.00084,63618.0,63617.0,2.74031896]
[1719800865951,0.00084,63618.0,63617.0,2.73731896]
[1719800866362,0.00084,63618.0,63617.0,2.73831896]
[1719800866558,0.00084,63618.0,63617.0,2.73731896]
[1719800866899,0.00084,63618.0,63617.0,2.73831896]
[1719800867284,0.00084,63618.0,63617.0,2.73931896]
[1719800867843,0.00084,63618.0,63617.0,2.73831896]
[1719800868300,0.00084,63618.0,63617.0,2.73931896]
[1719800868651,0.00084,63618.0,63617.0,2.78538519]
[1719800869043,0.00084,63618.0,63617.0,2.79538519]
[1719800869349,0.00084,63618.0,63617.0,2.80638519]
[1719800869544,0.00084,63618.0,63617.0,2.99538519]
[1719800869890,0.00084,63618.0,63617.0,2.99638519]
[1719800870095,0.00084,63618.0,63617.0,2.99538519]
[1719800870503,0.00084,63618.0,63617.0,2.99638519]
[1719800870698,0.00084,63618.0,63617.0,2.94931896]
[1719800871099,0.00084,63618.0,63617.0,2.93831896]
[1719800871304,0.00084,63618.0,63617.0,3.25369996]
[1719800872056,0.00084,63618.0,63617.0,3.25269996]
[1719800872263,0.00084,63618.0,63617.0,3.25369996]
[1719800873438,0.00084,63618.0,63617.0,3.05369996]
[1719800873642,0.00084,63618.0,63617.0,3.25369996]
[1719800873821,0.00084,63618.0,63617.0,2.94419996]
[1719800873997,0.00084,63618.0,63617.0,3.14419996]
[1719800875442,0.00084,63618.0,63617.0,2.87119996]
[1719800875664,0.00084,63618.0,63617.0,3.07119996]
[1719800875861,0.00084,63618.0,63617.0,3.14419996]
[1719800876104,0.00084,63618.0,63617.0,3.14319996]
[1719800876454,0.00084,63618.0,63617.0,2.94319996]
[1719800876636,0.00084,63618.0,63617.0,1.84569996]
[1719800876887,0.00084,63618.0,63599.0,0.000924]
[1719800876888,0.00643402,63603.0,63599.0,0.000924]
[1719800877095,0.5678,63604.0,63601.0,0.31446]
[1719800877308,0.5678,63604.0,63603.0,0.073]
[1719800877524,0.5908,63604.0,63603.0,0.073]
[1719800877960,0.61459645,63604.0,63603.0,0.073]
[1719800878222,0.5908,63604.0,63603.0,0.073]
[1719800878671,0.59723402,63604.0,63603.0,0.073]
[1719800878876,0.00643402,63601.0,63600.0,0.09346464]
[1719800879099,0.00643402,63603.0,63600.0,0.09346464]
[1719800879306,0.023,63602.0,63600.0,0.09346464]
[1719800879943,0.02943402,63603.0,63600.0,0.09346464]
[1719800880814,0.023,63603.0,63600.0,0.09346464]
[1719800881166,0.03243402,63603.0,63600.0,0.09346464]
[1719800881368,0.026,63603.0,63600.0,0.09346464]
[1719800882320,0.028,63603.0,63600.0,0.09346464]
[1719800886572,0.03443402,63603.0,63600.0,0.09346464]
[1719800887102,0.023,63603.0,63600.0,0.09346464]
[1719800887308,0.025,63603.0,63600.0,0.09346464]
[1719800887507,0.028,63603.0,63600.0,0.09346464]
[1719800887957,0.025,63603.0,63600.0,0.09346464]
[1719800888131,0.03143402,63603.0,63600.0,0.09346464]
[1719800888332,0.03443402,63603.0,63600.0,0.09346464]
[1719800888534,0.03243402,63603.0,63600.0,0.09346464]
[1719800889092,0.03443402,63603.0,63600.0,0.09346464]
[1719800889511,0.028,63603.0,63600.0,0.09346464]
[1719800890151,0.023,63603.0,63600.0,0.09346464]
[1719800890553,0.028,63603.0,63600.0,0.09346464]
[1719800891379,0.025,63603.0,63600.0,0.09346464]
[1719800891582,0.028,63603.0,63600.0,0.09346464]
[1719800891826,0.026,63603.0,63600.0,0.09346464]
[1719800892537,0.028,63603.0,63600.0,0.09346464]
[1719800893241,0.00643402,63601.0,63600.0,0.09346464]
[1719800893465,0.02943402,63601.0,63600.0,0.09346464]
[1719800894748,0.03143402,63601.0,63600.0,0.09346464]
[1719800895890,0.03343402,63601.0,63600.0,0.09346464]
[1719800896577,0.05343402,63601.0,63600.0,0.09346464]
[1719800897275,0.05143402,63601.0,63600.0,0.09346464]
[1719800897505,0.05443402,63601.0,63600.0,0.09446464]
[1719800897765,0.05243402,63601.0,63600.0,0.09446464]
[1719800898007,0.04943402,63601.0,63600.0,0.09346464]
[1719800898262,1.41840043,63601.0,63600.0,0.09446464]
[1719800898499,1.51840043,63601.0,63600.0,0.09446464]
[1719800899002,1.51843247,63601.0,63600.0,0.09446464]
[1719800899264,1.52243247,63601.0,63600.0,0.09546464]
[1719800899573,1.52243247,63601.0,63600.0,0.09346464]
[1719800899574,1.99223145,63601.0,63600.0,0.09346464]
[1719800899790,1.99623145,63601.0,63600.0,0.09546464]
[1719800900021,2.00323145,63601.0,63600.0,0.09546464]
[1719800900487,1.99623145,63601.0,63600.0,0.09446464]
[1719800900718,1.68877145,63601.0,63600.0,0.09546464]
[1719800902201,1.68878358,63601.0,63600.0,0.09546464]
[1719800902440,1.671123,63601.0,63600.0,0.09546464]
[1719800902701,1.66878328,63601.0,63600.0,0.09546464]
[1719800902954,1.68878328,63601.0,63600.0,0.09546464]
[1719800903888,1.671123,63601.0,63600.0,0.09546464]
[1719800904089,1.68877604,63601.0,63600.0,0.09546464]
[1719800904861,1.66877604,63601.0,63600.0,0.09546464]
[1719800905069,1.022203,63601.0,63600.0,0.09546464]
[1719800905279,0.69729282,63601.0,63600.0,0.09546464]
[1719800906706,0.72029282,63601.0,63600.0,0.09546464]
[1719800907333,0.15809282,63601.0,63600.0,0.09546464]
[1719800908540,0.15809282,63601.0,63600.0,0.09446464]
[1719800908759,0.05409282,63601.0,63600.0,0.09446464]
[1719800908962,0.05109282,63601.0,63600.0,0.09446464]
[1719800909123,0.05509282,63601.0,63600.0,0.09546464]
[1719800911105,0.03743402,63601.0,63600.0,0.09546464]
[1719800911328,0.05511793,63601.0,63600.0,0.09546464]
[1719800911807,0.04711793,63601.0,63600.0,0.09346464]
[1719800911968,0.05111793,63601.0,63600.0,0.09446464]
[1719800912163,0.05511793,63601.0,63600.0,0.09546464]
[1719800912996,0.04868391,63601.0,63600.0,0.09546464]
[1719800913594,0.05111793,63601.0,63600.0,0.09446464]
[1719800914228,0.03343402,63601.0,63600.0,0.09446464]
[1719800914387,0.05117169,63601.0,63600.0,0.09446464]
[1719800914798,0.04717292,63601.0,63600.0,0.09346464]
[1719800915005,0.05517292,63601.0,63600.0,0.09546464]
[1719800915367,0.05117292,63601.0,63600.0,0.09346464]
[1719800915572,0.05117292,63601.0,63600.0,0.09446464]
[1719800915573,0.04717292,63601.0,63600.0,0.09446464]
[1719800915768,0.05517292,63601.0,63600.0,0.09446464]
[1719800917284,0.0487389,63601.0,63600.0,0.09446464]
[1719800917491,0.04876877,63601.0,63600.0,0.09446464]
[1719800917963,0.04476877,63601.0,63600.0,0.09446464]
[1719800918081,0.04076877,63601.0,63600.0,0.09346464]
[1719800918276,0.05120279,63601.0,63600.0,0.09346464]
[1719800918685,0.05120279,63601.0,63600.0,0.09446464]
[1719800919103,0.04720279,63601.0,63600.0,0.09346464]
[1719800919331,0.05520279,63601.0,63600.0,0.09446464]
[1719800920528,0.031,63601.0,63600.0,0.09446464]
[1719800920753,0.05528944,63601.0,63600.0,0.09446464]
[1719800923747,0.05530174,63601.0,63600.0,0.09446464]
[1719800924400,0.05130174,63601.0,63600.0,0.09346464]
[1719800924954,0.05530174,63601.0,63600.0,0.09346464]
[1719800925567,0.05130174,63601.0,63600.0,0.09346464]
[1719800925775,0.05530174,63601.0,63600.0,0.09346464]
[1719800926694,0.03743402,63601.0,63600.0,0.09346464]
[1719800926899,0.05531282,63601.0,63600.0,0.09346464]
[1719800927121,0.03743402,63601.0,63600.0,0.09346464]
[1719800927326,0.04887878,63601.0,63600.0,0.09346464]
[1719800927736,0.0473128,63601.0,63600.0,0.09346464]
[1719800928107,0.0513128,63601.0,63600.0,0.09346464]
[1719800928537,0.0473128,63601.0,63600.0,0.09346464]
[1719800928736,0.0473128,63601.0,63600.0,0.09446464]
[1719800929536,0.0473128,63601.0,63600.0,0.09346464]
[1719800929904,0.04728077,63601.0,63600.0,0.09346464]
[1719800930508,0.05128077,63601.0,63600.0,0.09346464]
[1719800932103,0.04728077,63601.0,63600.0,0.09346464]
[1719800932508,0.04728077,63601.0,63600.0,0.09446464]
[1719800932949,0.02943402,63601.0,63600.0,0.09446464]
[1719800933155,0.04728021,63601.0,63600.0,0.09446464]
[1719800933308,0.04728021,63601.0,63600.0,0.09346464]
[1719800933689,0.05128021,63601.0,63600.0,0.09446464]
[1719800934032,0.04728021,63601.0,63600.0,0.09346464]
[1719800934591,0.10775373,63601.0,63600.0,0.09446464]
[1719800935398,0.11175373,63601.0,63600.0,0.09546464]
[1719800935550,0.1434281,63601.0,63600.0,0.09446464]
[1719800935739,0.1474281,63601.0,63600.0,0.09546464]
[1719800936321,0.8499281,63601.0,63600.0,0.09546464]
[1719800936446,0.95805252,63601.0,63600.0,0.09546464]
[1719800936658,0.92305514,63601.0,63600.0,0.09546464]
[1719800936857,1.01731526,63601.0,63600.0,0.09546464]
[1719800938536,0.94421526,63601.0,63600.0,0.09546464]
[1719800939129,0.84995514,63601.0,63600.0,0.09546464]
[1719800939344,0.90857216,63601.0,63600.0,0.09546464]
[1719800939504,1.10151189,63601.0,63600.0,0.09546464]
[1719800939709,1.17461189,63601.0,63600.0,0.09546464]
[1719800940589,1.48907189,63601.0,63600.0,0.09546464]
[1719800940789,1.80353189,63601.0,63600.0,0.09546464]
[1719800941285,1.96587087,63601.0,63600.0,0.09546464]
[1719800941692,1.87159572,63601.0,63600.0,0.09546464]
[1719800942103,1.98936781,63601.0,63600.0,0.09546464]
[1719800942329,1.87159572,63601.0,63600.0,0.09546464]
[1719800943235,1.98931781,63601.0,63600.0,0.09546464]
[1719800943387,1.87159572,63601.0,63600.0,0.09546464]
[1719800944725,1.98917261,63601.0,63600.0,0.09546464]
[1719800945564,1.57807954,63601.0,63600.0,0.09546464]
[1719800945767,1.48392724,63601.0,63600.0,0.09546464]
[1719800946111,0.82989826,63601.0,63600.0,0.09546464]
[1719800946353,0.90049923,63601.0,63600.0,0.09546464]
[1719800946553,0.86485894,63601.0,63600.0,0.09546464]
[1719800946727,0.79425797,63601.0,63600.0,0.09546464]
[1719800947636,0.77640754,63601.0,63600.0,0.09546464]
[1719800947856,0.79425269,63601.0,63600.0,0.09546464]
[1719800948059,0.77640754,63601.0,63600.0,0.09546464]
[1719800948258,0.79425242,63601.0,63600.0,0.09546464]
[1719800949721,0.09412547,63604.0,63603.0,0.13515348]
[1719800949920,0.18416079,63604.0,63603.0,0.13515348]
[1719800950329,0.05641787,63604.0,63603.0,0.13515348]
[1719800950530,0.04707082,63604.0,63603.0,0.13515348]
[1719800950739,0.04707113,63604.0,63603.0,0.13515348]
[1719800951524,0.04807113,63604.0,63603.0,0.13615348]
[1719800951739,0.07107113,63604.0,63603.0,0.13615348]
[1719800951872,0.07207113,63604.0,63603.0,0.13715348]
[1719800954273,0.07107113,63604.0,63603.0,0.13615348]
[1719800954574,0.07207113,63604.0,63603.0,0.13715348]
[1719800955038,0.07207113,63604.0,63603.0,0.13615348]
[1719800955039,0.07455767,63604.0,63603.0,0.13615348]
[1719800955242,0.12263288,63604.0,63603.0,0.13715348]
[1719800955436,0.22263193,63604.0,63603.0,0.13715348]
[1719800955660,0.22163193,63604.0,63603.0,0.13615348]
[1719800956077,0.17555767,63604.0,63603.0,0.13715348]
[1719800956387,0.12263195,63604.0,63603.0,0.13715348]
[1719800956591,0.17555767,63604.0,63603.0,0.13715348]
[1719800957753,0.07555767,63604.0,63603.0,0.13715348]
[1719800958615,0.1226335,63604.0,63603.0,0.13715348]
[1719800958815,0.2226335,63604.0,63603.0,0.13715348]
[1719800959655,0.22752555,63604.0,63603.0,0.13715348]
[1719800960294,0.22752544,63604.0,63603.0,0.13715348]
[1719800960673,0.18044957,63604.0,63603.0,0.13715348]
[1719800961881,0.17944957,63604.0,63603.0,0.13615348]
[1719800962087,0.18044957,63604.0,63603.0,0.13715348]
[1719800963285,0.18048603,63604.0,63603.0,0.13715348]
[1719800963530,0.18048577,63604.0,63603.0,0.13715348]
[1719800964129,0.17954068,63604.0,63603.0,0.13615348]
[1719800964328,0.18154068,63604.0,63603.0,0.13715348]
[1719800964535,0.25216249,63604.0,63603.0,0.13715348]
[1719800965739,0.25016249,63604.0,63603.0,0.13515348]
[1719800965945,0.17954068,63604.0,63603.0,0.13515348]
[1719800966581,0.17955052,63604.0,63603.0,0.13515348]
[1719800968384,0.25017432,63604.0,63603.0,0.13515348]
[1719800969589,0.25019199,63604.0,63603.0,0.13515348]
[1719800971027,0.27019199,63604.0,63603.0,0.13515348]
[1719800971179,0.25019199,63604.0,63603.0,0.13515348]
[1719800972571,0.27358647,63604.0,63603.0,0.13515348]
[1719800972775,0.27358021,63604.0,63603.0,0.13515348]
[1719800973185,0.80418304,63604.0,63603.0,0.13515348]
[1719800973379,0.83257909,63604.0,63603.0,0.13515348]
[1719800973580,0.76195372,63604.0,63603.0,0.13515348]
[1719800974181,0.83258092,63604.0,63603.0,0.13515348]
[1719800974424,0.76195372,63604.0,63603.0,0.13515348]
[1719800975534,0.83258973,63604.0,63603.0,0.13515348]
[1719800975970,0.83259061,63604.0,63603.0,0.13515348]
[1719800976500,0.76195498,63604.0,63603.0,0.13515348]
[1719800979084,0.73355767,63604.0,63603.0,0.13515348]
[1719800979280,0.20292851,63604.0,63603.0,0.13515348]
[1719800982217,0.17455767,63604.0,63603.0,0.13515348]